Cogmind - Beta 17.1 @@@ ROGUE MODE // 2026.09.10 @ 22:38:50 Player: J1ang-5h1 Result: Destroyed by B-75 Beast with Magnetic Acceleration Cannon Performance ------------- Evolutions (3) 1500 Regions Visited (8) 1600 Robots Destroyed (200) 1000 Value Destroyed (6765) 6765 Prototype IDs (12) 240 Alien Tech Used (0) 0 Bonus (12020) 12020 TOTAL SCORE: 23125 Bonus ------- High Alert Combat Kills 513 Follower Combat Kills 132 Prayed to X0-1V1 5000 Major X0-1V1 Interference 3850 Entered Garrisons 600 Used RIF Installer 2000 Friendly Fire -75 Cogmind --------- Core Integrity 0/460 Matter 140/300 Energy 664/1690 System Corruption 0% Temperature Warm (168) Movement Treading (320) Ox2 Location -7/Garrison Parts ------- > --- POWER (2) -------- Reinforced Deuterium Engine > --- PROPULSION (3) --- Improved Medium Treads Armored Huge Wheel > --- UTILITY (5) ------ Improved Cooling System High-capacity Storage Unit Machine Analyzer Hacking Suite X0-1V1's Piety Tracker > --- WEAPON (3) ------- Hypervelocity Gauss Cannon Hypervelocity Gauss Cannon Hypervelocity Gauss Cannon > --- INVENTORY (20) --- Improved Medium Treads Seismic Detector Improved Target Analyzer Advanced Recoil Stabilizer Improved Kinecellerator Improved Weapon Cycler Improved Weapon Cycler Transmission Jammer Advanced ECM Suite Improved Heavy Armor Plating Improved Heavy Armor Plating Medium Reflective Plating Focal Shield Shock Absorption System EM Disruption Field Rocket Launcher Remote Datajack Plasma Cutter Peak State ------------ > --- POWER ------------ Reinforced Deuterium Engine > --- PROPULSION ------- Improved Medium Treads Armored Huge Wheel > --- UTILITY ---------- High-capacity Storage Unit Machine Analyzer Advanced Recoil Stabilizer Hacking Suite X0-1V1's Piety Tracker > --- WEAPON ----------- Hypervelocity Gauss Cannon Hypervelocity Gauss Cannon Hypervelocity Gauss Cannon > --- INVENTORY -------- Improved Medium Treads Improved Cooling System Seismic Detector Improved Target Analyzer Improved Kinecellerator Weapon Cycler Improved Weapon Cycler Transmission Jammer Advanced ECM Suite Improved Heavy Armor Plating Improved Heavy Armor Plating Medium Reflective Plating Focal Shield Shock Absorption System EM Disruption Field Rocket Launcher Remote Datajack Plasma Cutter [Rating: 69] Favorites ----------- Power Light Nuclear Core Engine Improved Deuterium Engine Power Core Light Nuclear Core Propulsion Compact Wheel Treads Light Treads Leg Carbon-fiber Leg Wheel Compact Wheel Utility High-capacity Storage Unit Device X0-1V1's Piety Tracker Storage High-capacity Storage Unit Processor Machine Analyzer Hackware Hacking Suite Protection Light Armor Plating Weapon Spread Laser Energy Gun Spread Laser Energy Cannon Cooled Particle Cannon Ballistic Gun Improved Assault Rifle Ballistic Cannon Advanced Assault Cannon Launcher Rocket Launcher Special Weapon Mining Laser Impact Weapon Heavy Hammer Slashing Weapon Scimitar of Distortion Build | -11 -10 -9 -8 -8 -8 -8 -7 -7 ------- Run | Yrd Mat Mat Mat Gar Mat Gar Fac Gar Slots Evolved 6 | . . 2 2 . . . 2 . Power 1 | . . . . . . . 1 . Propulsion 1 | . . . . . . . 1 . Utility 3 | . . 2 1 . . . . . Weapon 1 | . . . 1 . . . . . Parts Attached 123 | 6 14 22 18 5 3 11 24 20 Power 18 | 1 1 2 2 . . 1 8 3 Engine 14 | 1 . 2 1 . . 1 7 2 Core 4 | . 1 . 1 . . . 1 1 Reactor . | . . . . . . . . . Propulsion 27 | 2 3 6 1 . 2 4 4 5 Treads 12 | . 2 . . . . 4 3 3 Leg . | . . . . . . . . . Wheel 15 | 2 1 6 1 . 2 . 1 2 Hover . | . . . . . . . . . Flight . | . . . . . . . . . Utility 41 | 1 5 7 7 2 . 6 7 6 Device 23 | . 3 3 3 2 . 4 3 5 Storage 6 | 1 2 1 . . . 1 . 1 Processor 1 | . . . . . . . 1 . Hackware 2 | . . . . . . . 2 . Protection 9 | . . 3 4 . . 1 1 . Artifact . | . . . . . . . . . Weapon 37 | 2 5 7 8 3 1 . 5 6 Energy Gun 9 | 2 3 1 1 . . . . 2 Energy Cannon 3 | . . 1 1 . . . . 1 Ballistic Gun 8 | . 1 2 3 . . . 2 . Ballistic Cannon 8 | . . . 2 2 . . 1 3 Launcher 3 | . . 1 . . 1 . 1 . Special Weapon 1 | . 1 . . . . . . . Impact Weapon 1 | . . 1 . . . . . . Slashing Weapon 4 | . . 1 1 1 . . 1 . Piercing Weapon . | . . . . . . . . . Special Melee Weapon . | . . . . . . . . . Unidentified Prototypes 6 | . 1 2 3 . . . . . Corrupted Parts 3 | . . . . . . . 3 . System Corruption 20 | . . . . . . . 20 . Parts Lost 38 | . 1 2 2 . . 9 13 11 Power 6 | . . . . . . 1 3 2 Propulsion 9 | . 1 1 . . . 2 2 3 Utility 13 | . . 1 2 . . 3 4 3 Weapon 10 | . . . . . . 3 4 3 Highest Loss Streak 5 | . 1 1 1 . . 2 4 5 To Critical Strikes 1 | . . . . . . 1 . . Average Backups 17 | 3 14 19 19 18 19 17 18 15 Power . | . 1 . . 1 1 1 . . Propulsion 1 | 1 2 2 . . . . 1 . Utility 9 | . 3 7 8 11 12 11 12 11 Weapon 4 | 1 6 8 7 5 5 3 2 1 Tool/Special . | . . . . . . . . . Unused Backups 50 | . 3 14 12 1 . . 1 19 Power 1 | . . 1 . . . . . . Propulsion 3 | . . 1 . . . . . 2 Utility 26 | . 1 2 7 1 . . 1 14 Weapon 16 | . 1 9 5 . . . . 1 Tool/Special 4 | . 1 1 . . . . . 2 Average Slot Usage (%) 92 | . 97 97 99 100 80 83 91 86 Engine 6 | . . 8 8 . . 5 9 10 Core 4 | . 13 2 . 9 6 2 2 2 Treads 8 | . 12 . . . . 12 16 8 Wheel 10 | . 15 20 17 18 13 1 1 5 Device 19 | . 11 26 26 27 21 21 13 14 Storage 9 | . 14 11 9 9 6 8 7 7 Processor 2 | . . . . . . . 6 7 Hackware 2 | . . . . . . . 8 7 Protection 3 | . . 5 9 9 6 5 . . Energy Gun 7 | . 22 16 . . . . . 5 Energy Cannon 2 | . . . . . 2 8 2 1 Ballistic Gun 4 | . 3 4 20 . . . . 8 Ballistic Cannon 3 | . . . 3 22 20 6 1 2 Launcher 1 | . . . . . . 3 3 1 Slashing Weapon 3 | . . . 2 3 . 7 12 . Peak Build Rating 69 | 6 26 32 47 50 55 58 61 69 Average Rating 39 | 5 12 28 38 47 50 50 53 51 On Entrance 35 | . 6 26 29 46 50 53 54 56 Avg Prop Armor Cover (%) 9 | . 14 . . . . . 10 8 Naked Turns . | . . . . . . . . . Heaviest Build 94 | 11 52 59 77 82 89 94 83 87 Greatest Support 60 | 32 40 32 28 26 26 40 60 40 Greatest Overweight (x) 31 | . 3 3 4 3 4 31 5 5 Average Overweight (x) 1 | . . 1 2 2 3 2 1 2 Largest Inventory Capacity 20 | 8 20 20 20 20 20 20 20 20 Average Capacity 19 | 7 15 20 20 20 20 20 20 20 Most Carried 20 | 7 20 20 20 20 20 20 20 20 Average Carried 17 | 4 14 19 19 19 19 17 18 18 Final Capacity 20 | 8 20 20 20 20 20 20 20 20 Final Carried 20 | 7 20 20 20 20 20 17 19 20 Class Distribution -------------------- 43% | Mutant 26% | Scavenger-Mutant 8% | Tank 8% | Gunner 4% | Scavenger-Gunner 4% | Scavenger-Tank Dominant Class ---------------- Mutant | -10/Materials Mutant | -9/Materials Tank | -8/Materials Gunner | -8/Garrison Gunner | -8/Materials Mutant | -8/Garrison Scavenger-Mutant | -7/Factory Scavenger-Mutant | -7/Garrison Resources | -11 -10 -9 -8 -8 -8 -8 -7 -7 ----------- Run | Yrd Mat Mat Mat Gar Mat Gar Fac Gar Matter Collected 5727 | 260 335 695 571 483 477 1265 449 1192 Remotely 90 | . . . . 90 . . . . Salvage Created 7126 | 192 599 1604 681 305 447 1320 983 995 Parts 358 | 16 41 76 35 16 33 64 45 32 Haulers Intercepted 7 | . 1 3 2 . 1 . . . Recyclers Shooed 6 | . 1 1 3 . 1 . . . Parts Field Recycled . | . . . . . . . . . Retrieved Matter . | . . . . . . . . . Parts Self-Destructed . | . . . . . . . . . Prevented . | . . . . . . . . . Parts Restored . | . . . . . . . . . Kills | -11 -10 -9 -8 -8 -8 -8 -7 -7 ------- Run | Yrd Mat Mat Mat Gar Mat Gar Fac Gar Combat Hostiles Destroyed 153 | . 16 33 10 12 13 31 18 20 Melee 10 | . . . . . . 7 3 . Guns 59 | . 16 30 7 . . . . 6 Cannons 52 | . . . 3 7 13 20 8 1 AOE 30 | . . 3 . 5 . 3 6 13 Classes Destroyed 18 | 2 6 2 . 2 2 2 2 . Worker 4 | . 1 2 . . 1 . . . Builder 2 | . . . . . 2 . . . Tunneler 7 | 5 1 1 . . . . . . Hauler 7 | . 1 3 2 . 1 . . . Recycler 11 | 1 1 7 1 . 1 . . . Mechanic 3 | . . 1 1 . 1 . . . Operator 5 | . 3 1 1 . . . . . Watcher 8 | . 2 4 1 . . . 1 . Swarmer 27 | . 6 5 2 3 7 1 . 3 Cutter 3 | . . . . . . 3 . . Grunt 76 | . 10 22 5 3 3 15 6 12 Brawler 6 | . . . . . 1 2 1 2 Duelist 5 | . . . . 2 1 . . 2 Protector 1 | . . . . . . . 1 . Sentry 26 | . . 6 3 3 1 7 5 1 Specialist 3 | . . . . . . . 3 . Hunter 2 | . . . . 1 . . 1 . Programmer 4 | . . . . . . 3 1 . Best Kill Streak 13 | 3 3 5 3 8 8 13 7 8 Combat Bots Only 13 | . 3 4 3 8 4 13 7 8 Max Kills in Single Turn 3 | 1 2 3 1 3 2 2 3 2 Gunslinging 1 | . 1 1 . . . . . . Exploded 3 | . . 3 . 3 . 2 3 2 Melee 1 | . . . . . . 1 1 . Uniques/NPCs Destroyed . | . . . . . . . . . Combat | -11 -10 -9 -8 -8 -8 -8 -7 -7 -------- Run | Yrd Mat Mat Mat Gar Mat Gar Fac Gar Hostile Shots Fired 944 | . 58 108 67 30 33 171 330 147 Missed 288 | . 15 42 15 11 15 45 108 37 Hits 656 | . 43 66 52 19 18 126 222 110 Melee 21 | . . . . . . 13 . 8 Projectile 635 | . 43 66 52 19 18 113 222 102 AOE 5 | . . . . . . 1 4 . Critical Strikes 16 | . . . 2 . . 7 3 4 Damage Taken 7579 | . 451 800 657 242 186 1659 2004 1580 Core 1210 | . 116 163 111 16 37 192 306 269 Absorbed by Shields 1234 | . . . . . . 61 770 403 Redirected to Shielding 9 | . . . 9 . . . . . Ignored by Resistances 735 | . . . 60 18 15 331 157 154 Regen/Repaired (Parts) 141 | . 34 107 . . . . . . Core Remaining (%) 61 | 100 53 53 . . . 41 . . Volleys Fired 527 | 11 59 99 54 16 24 36 40 188 Largest 4 | 2 2 2 3 3 4 4 2 3 Hottest 180 | 90 130 130 80 120 150 150 90 180 Shots Fired 969 | 22 111 197 151 38 77 103 42 228 Gun 620 | 22 104 195 129 . . . 2 168 Cannon 302 | . . . 22 33 77 97 31 42 Launcher 40 | . . 2 . 5 . 6 9 18 Special 7 | . 7 . . . . . . . Kinetic 596 | . 13 58 151 33 72 65 20 184 Thermal 333 | 22 98 137 . . 5 32 13 26 Explosive 31 | . . 2 . 5 . 6 . 18 Electromagnetic 9 | . . . . . . . 9 . Robot Hit Streak 56 | 10 12 15 56 7 8 11 7 34 Robot Miss Streak 10 | 1 6 10 4 3 4 2 1 5 Penetration Max . | . . . . . . . . . Secondary Targets 5 | . 1 2 1 . . . . 1 Max Gunslinging Chain 1 | . 1 1 1 . . . . 1 Shots Hit Robots 738 | 15 79 165 111 19 38 92 40 179 Core Hits 496 | 7 78 171 31 15 19 43 35 97 Critical Kills 5 | . . . . . . . 5 . Critical Parts Destroyed 5 | . . . 1 . . . . 4 Critical Strikes 26 | 2 2 . 2 1 . 2 11 6 Burn 4 | 2 2 . . . . . . . Destroy 15 | . . . 1 . . . 8 6 Blast 4 | . . . 1 1 . 2 . . Sever 3 | . . . . . . . 3 . Melee Attacks 93 | . . 7 . 9 . 48 29 . Impact 5 | . . 5 . . . . . . Slashing 88 | . . 2 . 9 . 48 29 . Piercing . | . . . . . . . . . Sneak Attacks . | . . . . . . . . . Combat Hostiles . | . . . . . . . . . Follow-up Attacks 4 | . . . . . . 4 . . Damage Inflicted 18291 | 183 1014 2652 1797 1068 1293 3588 3037 3659 Guns 6820 | 183 1014 2346 1581 . . . . 1696 Cannons 4624 | . . . 216 525 1293 1725 458 407 Explosions 4841 | . . 306 . 543 . 542 1894 1556 Melee 2006 | . . . . . . 1321 685 . Ramming . | . . . . . . . . . Kinetic 7228 | . 45 660 1797 525 1210 932 301 1758 Thermal 5414 | 183 969 1686 . . 83 793 1355 345 Explosive 2947 | . . 306 . 543 . 542 . 1556 Electromagnetic 696 | . . . . . . . 696 . Impact . | . . . . . . . . . Slashing 2006 | . . . . . . 1321 685 . Piercing . | . . . . . . . . . Highest Corruption 43 | . . . . . . 9 33 43 Average Corruption 14 | . . . . . . 8 9 35 Corruption Purged . | . . . . . . . . . Corruption Blocked . | . . . . . . . . . Effects 104 | . . . . . . 49 21 34 Message Errors 21 | . . . . . . 12 4 5 Matter Fused 22 | . . . . . . 12 4 6 Heat Flow Errors 14 | . . . . . . 7 3 4 Energy Discharges 17 | . . . . . . 4 4 9 Parts Rejected 2 | . . . . . . 1 1 . Parts Fused 2 | . . . . . . 1 1 . Data Loss (minor) 10 | . . . . . . 6 1 3 Data Loss (major) 5 | . . . . . . 2 1 2 Misfires 3 | . . . . . . 2 . 1 Alerts 3 | . . . . . . 2 1 . Misdirections 1 | . . . . . . . 1 . Weapon Failures 4 | . . . . . . . . 4 Overload Shots 3 | . . . . . . 1 2 . Effects 1 | . . . . . . . 1 . Short Circuit 1 | . . . . . . . 1 . Overflow Damage 364 | . . 1 . 25 63 48 209 18 Projectiles 115 | . . . . 4 63 24 24 . Explosions 168 | . . 1 . 21 . . 128 18 Melee 81 | . . . . . . 24 57 . Knockbacks 18 | . . . 1 4 5 5 . 3 Impact . | . . . . . . . . . Kinetic 18 | . . . 1 4 5 5 . 3 Secondary . | . . . . . . . . . Self-Inflicted Damage 260 | . . . . . . 56 167 37 Shots 8 | . . . . . . 2 4 2 Rammed . | . . . . . . . . . Targets Rammed . | . . . . . . . . . Kicked . | . . . . . . . . . Crushed . | . . . . . . . . . Highest Temperature 330 | 90 294 306 6 21 48 258 268 330 Average Temperature 68 | 44 72 76 6 4 13 83 61 72 Received Heat Transfer 2608 | . 174 360 306 81 72 760 363 492 Effects 8 | . . 4 . . . . . 4 Energy Bleed 1 | . . 1 . . . . . . Interference 6 | . . 3 . . . . . 3 Short Circuit 1 | . . . . . . . . 1 Siege Activations . | . . . . . . . . . Martial Activations . | . . . . . . . . . Shielding Activations . | . . . . . . . . . Robots Disrupted . | . . . . . . . . . Combat Hostiles . | . . . . . . . . . Robots Corrupted 1 | . . . . . . . 1 . Combat Hostiles 1 | . . . . . . . 1 . Parts Fried 10 | . . . . . . . 10 . Impact Corruptions . | . . . . . . . . . Robots Melted 3 | . . 3 . . . . . . Combat Hostiles . | . . . . . . . . . Parts Melted 12 | . 4 6 . . . . 1 1 Heat Transferred 7214 | 631 1758 2095 . . 111 972 961 686 Parts Sabotaged . | . . . . . . . . . Parts Stolen . | . . . . . . . . . Parts Stripped 8 | . . . . . . 8 . . Power Chain Reactions 1 | . . . . . . . 1 . Alert | -11 -10 -9 -8 -8 -8 -8 -7 -7 ------- Run | Yrd Mat Mat Mat Gar Mat Gar Fac Gar Maximum Alert Level 3 | . . 2 1 2 2 3 2 2 Low Security (%) 33 | 100 100 44 16 13 . . 18 23 Level 1 30 | . . 33 83 9 61 12 71 10 Level 2 32 | . . 22 . 77 38 61 9 65 Level 3 4 | . . . . . . 26 . . Level 4 . | . . . . . . . . . Level 5 . | . . . . . . . . . High Security . | . . . . . . . . . Max Security . | . . . . . . . . . Peak Influence 912 | 15 139 592 292 569 442 912 478 623 Initial 478 | . . 49 244 189 276 274 478 173 Average 318 | 2 53 230 220 453 366 639 274 392 Influence Increases 4586 | 30 543 1090 370 380 316 728 511 618 Destroy 0b10 Robot/C 2680 | . 320 660 200 240 195 465 255 345 Destroy 0b10 Robot/NC 252 | 30 45 95 30 . 24 4 8 16 Destroy Leader 508 | . 86 164 66 20 50 24 66 32 Allied During Kill 30 | . . . . . . . 10 20 Trap Triggered on 0b10 8 | . . . . . . . . 8 Successful Hack 145 | . 11 61 14 . 4 29 26 . Select Force Hacks 120 | . 60 60 . . . . . . Disable Machine 123 | . . . . 15 12 24 72 . Anti-Garrison Action 238 | . . . . 50 . 113 . 75 Destroy Structure 308 | . 6 20 15 55 31 45 50 86 Lose Combat Pursuer 174 | . 15 30 45 . . 24 24 36 Influence Decreases 3985 | 30 426 628 657 103 463 238 1175 265 Entered New Map 1456 | . . 68 335 103 293 148 434 75 Time Decay 2029 | 30 416 540 302 . 170 . 571 . Lost Part 380 | . 10 20 20 . . 90 130 110 Lost Ally 120 | . . . . . . . 40 80 Squads Dispatched 25 | . 6 6 2 . 4 . 7 . Investigation 8 | . 3 5 . . . . . . Extermination 2 | . . . . . . . 2 . Reinforcement 7 | . 3 1 2 . 1 . . . Assault 2 | . . . . . . . 2 . Garrison 6 | . . . . . 3 . 3 . Intercept . | . . . . . . . . . Searches Triggered . | . . . . . . . . . Construction Impeded . | . . . . . . . . . Haulers Reinforced . | . . . . . . . . . Active Scanning Responses . | . . . . . . . . . Cargo Convoy Interrupts . | . . . . . . . . . Stealth | -11 -10 -9 -8 -8 -8 -8 -7 -7 --------- Run | Yrd Mat Mat Mat Gar Mat Gar Fac Gar Distress Signals 8 | . 1 2 5 . . . . . Communications Jammed . | . . . . . . . . . Distress Signals . | . . . . . . . . . Times Spotted 217 | . 30 47 20 14 12 37 26 31 Peak Tracking Total 9 | . 4 5 5 5 5 7 7 9 Tactical Retreats 10 | . 1 2 1 . . 2 2 2 Traps | -11 -10 -9 -8 -8 -8 -8 -7 -7 ------- Run | Yrd Mat Mat Mat Gar Mat Gar Fac Gar Traps Triggered 18 | . 1 . . 4 . 5 4 4 Indirectly 3 | . . . . . . . 3 . Trap Hack Attempts . | . . . . . . . . . Triggered . | . . . . . . . . . Disarmed . | . . . . . . . . . Reprogrammed . | . . . . . . . . . Reused 1 | . . . . . . . . 1 Traps Extracted . | . . . . . . . . . Installed 1 | . . . . . . . . 1 Triggered 1 | . . . . . . . . 1 Most Traps Carried 1 | . . . . . . . . 1 Machines | -11 -10 -9 -8 -8 -8 -8 -7 -7 ---------- Run | Yrd Mat Mat Mat Gar Mat Gar Fac Gar Machines Disabled 12 | . . . . 2 1 3 6 . Max in Single Turn 4 | . . . . 1 1 1 4 . Garrison Access 1 | . . . . . . . 1 . Garrison Relay 2 | . . . . 1 . 1 . . Machines Repaired . | . . . . . . . . . Machines Dismantled . | . . . . . . . . . Machines Sabotaged . | . . . . . . . . . Overloaded Fab Kills . | . . . . . . . . . Hacking | -11 -10 -9 -8 -8 -8 -8 -7 -7 --------- Run | Yrd Mat Mat Mat Gar Mat Gar Fac Gar Machines Accessed 40 | . 8 14 3 2 2 4 6 1 Terminals 26 | . 5 8 2 2 1 4 3 1 Fabricators 1 | . . . . . . . 1 . Repair Stations 3 | . 1 2 . . . . . . Recycling Units 4 | . 2 2 . . . . . . Scanalyzers 2 | . . 2 . . . . . . Garrison Access 4 | . . . 1 . 1 . 2 . Total Hacks 111 | . 25 57 6 2 4 5 10 2 Successful 76 | . 20 42 2 1 3 3 5 . Failed 34 | . 5 14 4 1 1 2 5 2 Catastrophic 5 | . . . . 1 . 1 2 1 Database Lockouts 1 | . . 1 . . . . . . Manual 31 | . 11 15 2 . 2 . 1 . Terminals 71 | . 17 31 5 2 3 5 6 2 Fabricators 2 | . . . . . . . 2 . Repair Stations 8 | . 2 6 . . . . . . Recycling Units 13 | . 6 7 . . . . . . Scanalyzers 13 | . . 13 . . . . . . Garrison Access 4 | . . . 1 . 1 . 2 . Terminal Hacks 22 | . 6 10 . 1 . 3 2 . Robot Analysis 1 | . . 1 . . . . . . Prototype ID Bank 4 | . 3 1 . . . . . . Open Door 1 | . . . . . . 1 . . Branch Access Points 1 | . . . . . . . 1 . Emergency Access Points 2 | . . 1 . . . 1 . . Terminal Index 1 | . . 1 . . . . . . Alert Level 1 | . . 1 . . . . . . Locate Traps 4 | . 2 1 . . . . 1 . Hauler Manifests 1 | . . 1 . . . . . . Zone Layout 4 | . 1 3 . . . . . . Garrison Registry 1 | . . . . 1 . . . . Security Stations 1 | . . . . . . 1 . . Fabricator Hacks 1 | . . . . . . . 1 . Build 1 | . . . . . . . 1 . Repair Station Hacks 8 | . 2 6 . . . . . . Scan Component 4 | . 1 3 . . . . . . Repair 4 | . 1 3 . . . . . . Recycling Unit Hacks 7 | . 3 4 . . . . . . Report Inventory 4 | . 2 2 . . . . . . Retrieve Components 3 | . 1 2 . . . . . . Scanalyzer 12 | . . 12 . . . . . . Insert Component 5 | . . 5 . . . . . . Analyze 7 | . . 7 . . . . . . Garrison Access Hacks 4 | . . . 1 . 1 . 2 . Unlock Access 4 | . . . 1 . 1 . 2 . Unauthorized Hacks 22 | . 9 10 1 . 2 . . . Terminals 18 | . 7 8 1 . 2 . . . Botnet 6 | . 2 3 . . 1 . . . Skim 12 | . 5 5 1 . 1 . . . Fabricators . | . . . . . . . . . Repair Stations . | . . . . . . . . . Recycling Units 4 | . 2 2 . . . . . . Tunnel 4 | . 2 2 . . . . . . Scanalyzers . | . . . . . . . . . Garrison Access . | . . . . . . . . . Data Cores Recovered . | . . . . . . . . . Used . | . . . . . . . . . Hacking Detections 28 | . 7 9 2 2 1 1 5 1 Full Trace Events 2 | . . 2 . . . . . . Feedback Events . | . . . . . . . . . Feedback Blocked . | . . . . . . . . . Robot Schematics Acquired . | . . . . . . . . . Robots Built . | . . . . . . . . . Authchips . | . . . . . . . . . Time . | . . . . . . . . . Total Robot Build Rating . | . . . . . . . . . Part Schematics Acquired 5 | . . 5 . . . . . . Parts Built 1 | . . . . . . . 1 . Authchips . | . . . . . . . . . Time 67 | . . . . . . . 67 . Total Part Build Rating 4 | . . . . . . . 4 . Part Studies Acquired . | . . . . . . . . . Parts Repaired 4 | . 1 3 . . . . . . Time 128 | . 38 90 . . . . . . Parts Recycled . | . . . . . . . . . Recycled Matter . | . . . . . . . . . Retrieved Matter . | . . . . . . . . . Retrieved Components 24 | . 10 14 . . . . . . Parts Scanalyzed 5 | . . 5 . . . . . . Part Schematics Acquired 5 | . . 5 . . . . . . Parts Damaged . | . . . . . . . . . Bothacking | -11 -10 -9 -8 -8 -8 -8 -7 -7 ------------ Run | Yrd Mat Mat Mat Gar Mat Gar Fac Gar Used RIF Installer 4 | . . . . 2 . 2 . . Threat Obfuscator 1 | . . . . 1 . . . . Program Shield 1 | . . . . . . 1 . . Autoassimilate 1 | . . . . . . 1 . . Robots Hacked . | . . . . . . . . . Non-combat . | . . . . . . . . . Combat . | . . . . . . . . . Robot Hacks Applied . | . . . . . . . . . Relay Couplers Released 11 | . . . . 5 . 3 3 . Machine Destruction 11 | . . . . 5 . 3 3 . Fabnet Peak Effective % . | . . . . . . . . . Robots Rewired . | . . . . . . . . . Allies Hacked 1 | . . . . . . . 1 . Hacks Repelled . | . . . . . . . . . Allies | -11 -10 -9 -8 -8 -8 -8 -7 -7 -------- Run | Yrd Mat Mat Mat Gar Mat Gar Fac Gar Total Allies 7 | . . . . . . 2 . 5 Largest Group 5 | . . . . . . 2 2 5 Highest-Rated Group 214 | . . . . . . 64 64 214 Highest-Rated Ally 43 | . . . . . . 39 39 43 Total Orders . | . . . . . . . . . Ally Attacks 61 | . . . . . . . 2 59 Total Damage 1863 | . . . . . . . 35 1828 Kills 4 | . . . . . . . . 4 Allies Corrupted . | . . . . . . . . . Allies Melted . | . . . . . . . . . X0-1V1 Amusement Gains 129 | . 17 20 15 . . 72 5 . Average Entertainment 46 | . 16 9 17 23 23 47 98 100 Good Acts 49 | . . 7 6 3 6 6 9 12 Bad Acts 24 | . 1 12 1 . . 4 3 3 Intel | -11 -10 -9 -8 -8 -8 -8 -7 -7 ------- Run | Yrd Mat Mat Mat Gar Mat Gar Fac Gar Active Infowar (turns) 4113 | . 454 901 664 134 . . 1661 299 Seismic 2357 | . 454 901 664 134 . . 204 . Machine Analysis 1906 | . . . . . . . 1658 248 Jamming 109 | . . . . . . . 109 . ECM 172 | . . . . . . . 121 51 Robot Analysis Total 1 | . . 1 . . . . . . Derelict Logs Recovered . | . . . . . . . . . Drone Launches . | . . . . . . . . . Drone Recoveries . | . . . . . . . . . Exploration | -11 -10 -9 -8 -8 -8 -8 -7 -7 ------------- Run | Yrd Mat Mat Mat Gar Mat Gar Fac Gar Turns Passed 10278 | 139 1452 2007 677 561 357 1637 1724 1724 Spaces Moved 4741 | 92 844 1254 323 322 197 471 633 605 Core 20 | 9 . . . . . 11 . . Treads 1398 | . 304 . . . . 364 529 201 Legs . | . . . . . . . . . Wheels 3323 | 83 540 1254 323 322 197 96 104 404 Hover . | . . . . . . . . . Flight . | . . . . . . . . . Fastest Speed 50 | 50 100 110 120 120 135 140 160 130 Average Speed 166 | 95 131 121 124 132 136 287 233 204 Slowest Speed 1600 | 100 240 145 160 135 140 1600 320 490 Overloaded Moves . | . . . . . . . . . Propulsion Burnouts . | . . . . . . . . . Robots Hopped . | . . . . . . . . . Potential Cave-ins 5 | . . . . . . . 5 . Cave-ins Triggered 1 | . . . . . . . 1 . Exploration Rate (%) 43 | 5 98 80 31 43 16 55 17 44 Regions Visited 8 Branch Regions . Pre-discovered Areas 10 | . 5 5 . . . . . . Known Exits Taken 5 | . 1 1 1 . 1 . 1 . Unknown Exits Taken 1 | 1 . . . . . . . . Scrap Searched . | . . . . . . . . . Spaces Dug 24 | . 7 4 . 2 . 1 10 . Terrain Destroyed 254 | . 7 18 13 33 30 5 62 86 Melee 12 | . . 4 . 2 . 1 5 . Projectile 62 | . 7 . 13 1 30 . 10 1 AOE 180 | . . 14 . 30 . 4 47 85 Terrain Rammed . | . . . . . . . . . Walls Destroyed . | . . . . . . . . . Machines Disabled . | . . . . . . . . . Actions | -11 -10 -9 -8 -8 -8 -8 -7 -7 --------- Run | Yrd Mat Mat Mat Gar Mat Gar Fac Gar Total 6171 | 121 1068 1543 486 408 231 619 785 910 Wait 294 | . 105 100 36 2 . 21 22 8 Move 4733 | 91 843 1253 322 320 197 470 632 605 Hop . | . . . . . . . . . Pick Up 152 | 13 25 27 24 5 . 13 22 23 Fast Attach 27 | . 1 4 8 . 1 . 5 8 Attach 59 | 6 3 3 5 . 1 14 14 13 Detach 6 | . 1 . . . 1 2 . 2 Swap 98 | . 19 20 8 19 4 4 12 12 Drop 116 | . 12 30 29 5 3 5 8 24 Fire 527 | 11 59 99 54 16 24 36 40 188 Melee 88 | . . 7 . 9 . 43 29 . Ram . | . . . . . . . . . Kick . | . . . . . . . . . Crush . | . . . . . . . . . Escape Stasis 58 | . . . . 32 . 9 1 16 Rewire 12 | . . . . . . 2 . 10 Trap 1 | . . . . . . . . 1 Miscellaneous . | . . . . . . . . . Route ------- -11/Scrapyard -10/Materials (discovered 5 exits: *Mat x3 / *Min / *Sub) -9/Materials (discovered 5 exits: *Mat x3 / [*Min x2]) -8/Materials (discovered 3 exits: [*Sto x2] / Gar) -8/Garrison (discovered 3 exits: *Mat x3) -8/Materials -8/Garrison -7/Factory (discovered 3 exits: Low x2 / Gar) -7/Garrison History --------- Turn | Location | Event 20 | -11/Scrapyard | Discovered new exit (range 14) 140 | -11/Scrapyard | Entered Materials 311 | -10/Materials | Build established: Mutant 530 | -10/Materials | Discovered new exit (range 4) 1042 | -10/Materials | Discovered new exit (range 7) 1094 | -10/Materials | Learned Storage trap positions 1151 | -10/Materials | Identified exit to Subcaves 1151 | -10/Materials | Identified exit to Materials 1199 | -10/Materials | Identified exit to Mines 1237 | -10/Materials | Learned location of Mines (-10) 1285 | -10/Materials | Learned location of 1 exit from Recycling 1295 | -10/Materials | Learned Storage trap positions 1317 | -10/Materials | Learned location of Storage (-8) 1396 | -10/Materials | Learned location of Subcaves (-10) 1420 | -10/Materials | Repaired Lgt. Nuclear Core 1511 | -10/Materials | Prayed at D.C.S.S. Altar Unit 1592 | -10/Materials | Entered another Materials area 1592 | -9/Materials | Evolved 2 slots: Utility x2 1593 | -9/Materials | Identified exit to Materials 1647 | -9/Materials | Ranged accuracy permanently improved by X0-1V1 (+5%; -50 max core) 1673 | -9/Materials | X0-1V1 sent you into danger 1874 | -9/Materials | Repaired Seismic Detector 1895 | -9/Materials | Build established: Scavenger-Mutant 2141 | -9/Materials | Central database locked down 2260 | -9/Materials | X0-1V1 vaporized surrounding terrain (radius 16) 2396 | -9/Materials | Discovered new exit (range 8) 2538 | -9/Materials | X0-1V1 activates XOMVISION 2680 | -9/Materials | X0-1V1 foreshadows a heat wave 2825 | -9/Materials | Build established: Mutant 2884 | -9/Materials | Ambient heat levels rising (+10) 3032 | -9/Materials | Ambient heat levels rising (+10) 3065 | -9/Materials | Learned location of Mines (-9) 3161 | -9/Materials | Loaded intel: 11 trap records 3196 | -9/Materials | Loaded intel: 2 recycling unit locations 3229 | -9/Materials | Ambient heat levels falling (-10) 3270 | -9/Materials | Discovered new exit (range 16) 3399 | -9/Materials | Repaired Arm. Wheel 3405 | -9/Materials | X0-1V1 sent hostile G-34 Mercenary (x3) 3414 | -9/Materials | Ambient heat levels falling (-10) 3432 | -9/Materials | Repaired Rocket Launcher 3456 | -9/Materials | X0-1V1 activates XOMVISION 3599 | -9/Materials | Entered another Materials area 3599 | -8/Materials | Evolved 2 slots: Utility x1, Weapon x1 3599 | -8/Materials | Discovered new exit (range 8) 3625 | -8/Materials | TH resistance permanently improved by X0-1V1 (+10%; -100 max core) 3919 | -8/Materials | Build established: Tank 4098 | -8/Materials | X0-1V1 sent you to a vault 4109 | -8/Materials | Found Prototype Slashing Weapon 4109 | -8/Materials | Identified Scimitar of Distortion 4118 | -8/Materials | Found Scimitar of Distortion 4122 | -8/Materials | Found Powered Armor 4190 | -8/Materials | Discovered new exit (range 5) 4268 | -8/Materials | Identified exit to Garrison 4276 | -8/Materials | Entered Garrison 4277 | -8/Garrison | Identified exit to Materials 4314 | -8/Garrison | Installed Relay Interface Framework 4348 | -8/Garrison | Triggered checkpoint 4392 | -8/Garrison | Triggered checkpoint 4425 | -8/Garrison | Destroyed 8 combat bots 4450 | -8/Garrison | Melee accuracy permanently improved by X0-1V1 (+9%; -90 max core) 4496 | -8/Garrison | Triggered checkpoint 4521 | -8/Garrison | Garrison Relay disabled 4544 | -8/Garrison | Discovered exit to Materials (range 6) 4544 | -8/Garrison | Discovered exit to Materials (range 57) 4544 | -8/Garrison | Discovered exit to Materials (range 93) 4592 | -8/Garrison | Expanded RIF knowledge: Threat Obfuscation 4766 | -8/Garrison | Found Hvy. Reflective Plating 4837 | -8/Garrison | Entered Materials 4897 | -8/Materials | Weapon slot count temporarily expanded by X0-1V1 (+4) 4902 | -8/Materials | Garrison activated, responded to threat 5140 | -8/Materials | X0-1V1 activates XOMVISION 5145 | -8/Materials | Build established: Gunner 5194 | -8/Materials | Identified exit to Garrison 5194 | -8/Materials | Entered Garrison 5214 | -8/Garrison | Triggered checkpoint 5277 | -8/Garrison | Expanded RIF knowledge: Program Shield 5355 | -8/Garrison | Core integrity restored by X0-1V1 (+86) 5398 | -8/Garrison | Triggered checkpoint 5450 | -8/Garrison | Destroyed 13 combat bots 5578 | -8/Garrison | X0-1V1 sent hostile B-36 Bruiser (x2) 5714 | -8/Garrison | Weapon slot count reverted to normal (-4) 5811 | -8/Garrison | Learned Factory security intel 6062 | -8/Garrison | Triggered checkpoint 6188 | -8/Garrison | Build established: Mutant 6228 | -8/Garrison | Expanded RIF knowledge: Autoassimilate 6402 | -8/Garrison | Triggered checkpoint 6416 | -8/Garrison | X0-1V1 downgraded hostiles (x3) 6426 | -8/Garrison | Core integrity fell below 50% 6480 | -8/Garrison | X0-1V1 activates XOMVISION 6521 | -8/Garrison | Garrison Relay disabled 6686 | -8/Garrison | Discovered new exit (range 10) 6767 | -8/Garrison | Rescued a captive Derelict 6769 | -8/Garrison | Rescued a captive Derelict 6822 | -8/Garrison | Triggered checkpoint 6831 | -8/Garrison | Entered Factory 6831 | -7/Factory | Accompanied by 2 allies 6831 | -7/Factory | Evolved 2 slots: Power x1, Propulsion x1 7158 | -7/Factory | Identified exit to Lower Caves 7422 | -7/Factory | Identified exit to Garrison 7437 | -7/Factory | Build established: Scavenger-Mutant 7523 | -7/Factory | Destroyed 7 combat bots 7644 | -7/Factory | Fabricated Cld. Airjet (x1) 7787 | -7/Factory | X0-1V1 whisked you away to safety 8030 | -7/Factory | X0-1V1 activates XOMVISION 8053 | -7/Factory | Build established: Mutant 8075 | -7/Factory | Core integrity restored by X0-1V1 (+96) 8162 | -7/Factory | X0-1V1 vaporized surrounding terrain (radius 21) 8202 | -7/Factory | Crushed by falling debris 8203 | -7/Factory | System corruption reached 10% 8232 | -7/Factory | X0-1V1 sent hostile X-62 Marksman (x3) 8233 | -7/Factory | Lost 4 parts (2p1u1w) 8327 | -7/Factory | Garrison activated, responded to threat 8533 | -7/Factory | System corruption reached 30% 8555 | -7/Factory | Identified exit to Garrison 8555 | -7/Factory | Entered Garrison 8751 | -7/Garrison | Triggered checkpoint 8758 | -7/Garrison | X0-1V1 activates XOMVISION 8820 | -7/Garrison | Build established: Scavenger-Tank 8908 | -7/Garrison | X0-1V1 caused items to flee you 8968 | -7/Garrison | Triggered checkpoint 8979 | -7/Garrison | Triggered checkpoint 8993 | -7/Garrison | Core integrity fell below 50% 9013 | -7/Garrison | Destroyed 8 combat bots 9037 | -7/Garrison | Lost 5 parts (2n1u2w) 9145 | -7/Garrison | Triggered checkpoint 9155 | -7/Garrison | Items stopped fleeing you 9239 | -7/Garrison | Triggered checkpoint 9546 | -7/Garrison | Build established: Scavenger-Mutant 9738 | -7/Garrison | Spotted B-75 Beast 9738 | -7/Garrison | Spotted B-75 Beast 9768 | -7/Garrison | X0-1V1 sent allied Elite (x5) 9781 | -7/Garrison | Allies destroyed B-75 Beast 9873 | -7/Garrison | Allies destroyed B-75 Beast 10099 | -7/Garrison | Core integrity fell below 20% 10165 | -7/Garrison | X0-1V1 activates XOMVISION 10230 | -7/Garrison | Spotted B-75 Beast 10279 | -7/Garrison | Destroyed by B-75 Beast with Magnetic Acceleration Cannon Last Messages --------------- 10252_ Dropped Hvy. Plasma Cannon. 10256_ Acquired Imp. Weapon Cycler. 10258_ Dropped Weapon Cycler. 10258_ Acquired Imp. Weapon Cycler. 10263_ B-75 Beast triggered Tesla Bomb Trap. 10263_ A bubble of electromagnetic force engulfs the area. 10263_ Emergency Access malfunctions. 10264_ HV Slug penetrates Wall. 10267_ HV Slug penetrates B-75 Beast. 10270_ B-75 Beast suffers critical hit (Destroy). 10270_ HV Slug penetrates Wall. 10274_ X0-1V1: "Don't spend it all in one place." (+25 energy generation) 10275_ HV Slug penetrates B-75 Beast. 10275_ B-75 Beast suffers critical hit (Destroy). 10278_ HV Slug penetrates Wall. 10279_ X0-1V1 bursts into laughter! Map ----- +----------------------------------------------------+ | ???????????????????????????? ##????????? ??? | | ???????????????????????????? #??? ????? #?? | | ???????????????????????????? % #??? ????# #?? | | ???????????????????????????? #??? ????# #?? | | ??????????############??????# #??? ????# #?? | | ?????###### % #??????# #??? ????# #?? | | ??####!! !# % ######## #??? ????# #?? | | ??#!!#! !#% + #??? ????# #?? | | ??#![### ## % % + #??+ +???# #?? | | ??# # % ####### #??# #???# #?? | | ??#!!# # % #????# ##??# #???# #?? | | ??#### " % #????# #?## #???# #?? | | ??#!!# # %%% #????## ## ## #???# ### | | ??# # !% %###### % ## #???# ## | | ??#!!### ## !%! +% = #??## ##### ## | | ??#!!#!! !# % ! +% #### # | | ??##?#!! !# % % %###### %= | | ?????###### #????### = | | ??????????###"########??????######### # | | ???????????# #???????????????# ##### # | | ???????????# #???????????????# ?# = | | ???????????##########???????????????##### | | ????????????????????????????????????????# = === | | ????????????????????????????????????????# = = | | ?????????????????##########???????###???### # | | ????????"""" #####]]] @]#?????###T##### # | | ????????" % [#?????# * | | ????????"""" #####! %%%#?????# | | ?????????????????#! ! #?????# %####### | | ?????????????????#!! %!!#?????# #?????### # | | ?????????????????#### ####?????# #???????# = # | | ????????????????????#BB#????????# #???????# ##" | | ????????????????????#BB####?????# #???????# ## | | ????????????????????# % #?????# #???????# ## | | ?????????????????#### %" #?????# #???????# ## | | ?????????????????#!!#//########## ######### ### | | ??????????????#### % #?? | | ??????????????# + #?? | | ??????????????# ##!!############# ############?? | | ??????????????# #####???????????# #????????????? | | ??????????????# #???????????????# #????????????? | | ??????????##### ######??????????# #????????????? | | ??????????# #??????????# [#######??????? | | ??????????# #??????????# = #??????? | | ??????????# #??????????# #=### #??????? | | ??????????# #??????????# ###?# ######?? | | ??????????# " #??????????# #???# ## !!#?? | | ?????????#"" """ #??????????# #???# !=! #?? | | ?????????#" " #?########## #???# ######?? | | ?????????#" #?# #???# ## !!#?? | +----------------------------------------------------+ Best States ------------- Heat Dissipation 61 Energy Generation 57 Energy Capacity 1690 Matter Stores 900 Matter Capacity 900 Sight Range 21 Terrain Scan Density 10 ECM Strength 2 Jamming Range 12 Armor Coverage 600 Resistance: TH 45 Resistance: EM 15 Weapon Shielding 33 Phase Shifting 5 Evasion (%) 50 Recoil Reduction 7 Kinecelleration 30 Offensive Hacking 20 Item Schematics ----------------- Imp. Assault Rifle | -9/Materials | Scanalyzed Cooling System | -9/Materials | Scanalyzed Arm. Wheel | -9/Materials | Scanalyzed Seismic Detector | -9/Materials | Scanalyzed Plasma Cutter | -9/Materials | Scanalyzed Robot Schematics ------------------ None Fabricated ------------ Cld. Airjet | x1 | -7/Factory | Preloaded Repaired ---------- Lgt. Nuclear Core | 32% | -10/Materials Seismic Detector | 45% | -9/Materials Arm. Wheel | 31% | -9/Materials Rocket Launcher | 61% | -9/Materials Studied --------- None Alien Tech Used ----------------- None Achievements -------------- None Challenges ------------ None Game ------ Seed PiercelightShieldMultitool Manual? 0 Play Time 02:13:20 Cumulative 431.0 hours Start 2026.09.10 @ 19:58:10 End 2026.09.10 @ 22:38:50 Sessions 1 Manual Loads 0 Difficulty Rogue Special Mode None Game No. 311 Rogue 301 Adventurer 0 Explorer 10 Win Type - Total 5 Types 5/0/0/0/0/0/0/0/0/0 Lore% 82 Gallery% 67 Achievement% 47 Wizard Run 0 Options --------- Layout 2 ASCII 0 Keyboard 0 Movement Arrows Keybinds 1 Fullscreen 1 Font 24/Terminus Map View 50x44 Zoom Use 0% Tactical HUD 1 Map Filters NONE Filters NONE Steam 1 RUN: f30947e9-66f6-4f83-9bf8-10db5055ee74